{"text_format":"1","workbook":"xlsx","n_sheets":1,"sheets":["Blad1"],"not_rendered":{"charts":0,"images":0,"macros":0,"external_links":0,"defined_names":0,"comments":0,"pivot_tables":0},"unopened":[],"bounds":{"document_bytes":16777216,"sheet_cells":100000,"rows_first":2000,"rows_last":500,"rows_between":2000,"halvings":0,"cell_chars":16384,"cell_head_chars":4096},"cells_cut":0,"cells_raw":0,"read":"whole","date_system":"1900"}

{"sheet":"Blad1","index":0,"n_rows":28,"n_cols":7,"rows_kept":28,"cut":false,"hidden":false,"merged":[]}
[]
[null,null,"deze in de rij naast de vaste gegevens in kolom F",null,null,null,"vaste gegevens"]
[null,null,null,null,null,{"$f":"IFERROR(INDEX(G$3:G$28,MATCH(C3,G$3:G$28,0)),\"\")","v":""},"A"]
[null,null,"A",null,null,"A","B"]
[null,null,"B",null,null,"B","C"]
[null,null,null,null,null,"","D"]
[null,null,null,null,null,"","E"]
[null,null,null,null,null,"","F"]
[null,null,null,null,null,"","G"]
[null,null,"D",null,null,"D","H"]
[null,null,null,null,null,"","I"]
[null,null,null,null,null,"","J"]
[null,null,null,null,null,"","K"]
[null,null,null,null,null,"","L"]
[null,null,null,null,null,"","M"]
[null,null,null,null,null,"","N"]
[null,null,null,null,null,"","O"]
[null,null,null,null,null,"","P"]
[null,null,"Z",null,null,"Z","Q"]
[null,null,null,null,null,"","R"]
[null,null,null,null,null,"","S"]
[null,null,null,null,null,"","T"]
[null,null,null,null,null,"","U"]
[null,null,null,null,null,"","V"]
[null,null,null,null,null,"","W"]
[null,null,null,null,null,"","X"]
[null,null,null,null,null,"","Y"]
[null,null,null,null,null,"","Z"]